[Event "FIDE World Cadets U10 2022"]
[Site "Batumi"]
[Date "2022.09.16"]
[Round "1"]
[White "Syzdykov, Aituar"]
[Black "Vincenti, Leonardo"]
[Result "0-1"]
[ECO "B90"]
[WhiteElo "1229"]
[BlackElo "1848"]
[Annotator "NA COMBH"]
[PlyCount "150"]
[EventDate "2022.09.16"]
[EventType "swiss"]
[EventCountry "GEO"]
[SourceTitle "playchess.com"]
[Source "ChessBase"]
[SourceQuality "1"]
[TimeControl "5400+30"]

1. e4 {[%emt 0:01:00]} c5 {[%emt 0:01:00]} 2. Nf3 {[%emt 0:00:30]} d6 {[%emt 0:00:30]} 3. d4 {[%emt 0:00:30]} cxd4 {[%emt 0:00:30]} 4. Nxd4 {[%emt 0:00:30]} Nf6 {[%emt 0:00:30]} 5. Nc3 {[%emt 0:00:30]} a6 {[%emt 0:00:00]} 6. f3 {[%emt 0:00:30]} e5 {[%emt 0:00:00]} 7. Nb3 {[%emt 0:01:30]} Be6 {[%emt 0:01:30]} 8. Be3 {[%emt 0:00:30]} Be7 {[%emt 0:00:00]} 9. Qd2 {[%emt 0:00:30]} Nbd7 {[%emt 0:02:00]} 10. g4 {[%emt 0:01:30]} b5 {[%emt 0:01:30]} 11. g5 {[%emt 0:02:30]} Nh5 {[%emt 0:01:30]} 12. O-O-O {[%emt 0:01:30]} Rc8 {[%emt 0:00:30]} 13. Kb1 {[%emt 0:01:30]} Qc7 {[%emt 0:03:30]} 14. Be2 {[%emt 0:09:30]} Nb6 {[%emt 0:03:30]} 15. Na5 {[%emt 0:23:30]} O-O {[%emt 0:15:30]} 16. h4 {[%emt 0:13:30]} b4 {[%emt 0:11:30]} 17. Bxb6 {[%emt 0:03:30]} Qxb6 {[%emt 0:00:30]} 18. Nd5 {[%emt 0:00:30]} Bxd5 {[%emt 0:00:30]} 19. Qxd5 {[%emt 0:00:00]} Nf4 {[%emt 0:00:00]} 20. Qd2 {[%emt 0:01:00]} Qxa5 {[%emt 0:01:00]} 21. Rdg1 {[%emt 0:01:30]} Rc5 {[%emt 0:04:30]} 22. h5 {[%emt 0:01:30]} b3 {[%emt 0:01:30]} 23. Qxa5 {[%emt 0:01:30]} bxc2+ {[%emt 0:00:30]} 24. Ka1 {[%emt 0:01:30]} Rxa5 {[%emt 0:00:00]} 25. Bc4 {[%emt 0:00:30]} Rc8 {[%emt 0:05:00]} 26. b3 {[%emt 0:00:30]} Rxc4 {[%emt 0:00:30]} 27. bxc4 {[%emt 0:00:30]} Ne2 {[%emt 0:00:00]} 28. Re1 {[%emt 0:04:30]} c1=Q+ {[%emt 0:00:00]} 29. Rxc1 {[%emt 0:00:30]} Nxc1 {[%emt 0:00:30]} 30. Rxc1 {[%emt 0:00:30]} Bxg5 {[%emt 0:00:00]} 31. Rb1 {[%emt 0:00:00]} g6 {[%emt 0:01:00]} 32. hxg6 {[%emt 0:01:00]} fxg6 {[%emt 0:00:00]} 33. Rb8+ {[%emt 0:00:00]} Kf7 {[%emt 0:01:00]} 34. Rb7+ {[%emt 0:00:00]} Be7 {[%emt 0:00:00]} 35. Kb2 {[%emt 0:00:30]} h5 {[%emt 0:00:00]} 36. a3 {[%emt 0:00:30]} h4 {[%emt 0:00:30]} 37. Ka2 {[%emt 0:00:30]} Rc5 {[%emt 0:00:30]} 38. Rb4 {[%emt 0:07:30]} Rc8 {[%emt 0:00:30]} 39. Rb2 {[%emt 0:00:30]} Rxc4 {[%emt 0:01:30]} 40. Kb3 {[%emt 0:00:30]} Rc1 {[%emt 0:00:30]} 41. Rh2 {[%emt 0:00:30]} Rf1 {[%emt 0:00:30]} 42. Rh3 {[%emt 0:00:30]} Rg1 {[%emt 0:00:00]} 43. Ka4 {[%emt 0:02:31]} Rg3 {[%emt 0:00:00]} 44. Rh2 {[%emt 0:00:30]} Rxf3 {[%emt 0:00:30]} 45. Rh1 {[%emt 0:02:55]} g5 {[%emt 0:00:00]} 46. Rh2 {[%emt 0:04:44]} d5 {[%emt 0:00:00]} 47. Ka5 {[%emt 0:00:28]} Rxa3+ {[%emt 0:00:00]} 48. Kb6 {[%emt 0:00:15]} dxe4 {[%emt 0:00:00]} 49. Rf2+ {[%emt 0:02:26]} Rf3 {[%emt 0:00:30]} 50. Ra2 {[%emt 0:00:57]} h3 {[%emt 0:00:00]} 51. Kxa6 {[%emt 0:00:17]} Ra3+ {[%emt 0:00:00]} 52. Rxa3 {[%emt 0:00:15]} Bxa3 {[%emt 0:00:00]} 53. Kb5 {[%emt 0:00:52]} Bc5 {[%emt 0:00:00]} 54. Kxc5 {[%emt 0:00:49]} h2 {[%emt 0:00:00]} 55. Kd5 {[%emt 0:00:07]} h1=Q {[%emt 0:00:00]} 56. Kxe5 {[%emt 0:00:13]} e3 {[%emt 0:00:30]} 57. Kd4 {[%emt 0:00:19]} e2 {[%emt 0:00:00]} 58. Kc4 {[%emt 0:00:47]} e1=N {[%emt 0:00:00]} 59. Kc3 {[%emt 0:00:16]} g4 {[%emt 0:00:00]} 60. Kc4 {[%emt 0:00:18]} g3 {[%emt 0:00:00]} 61. Kc3 {[%emt 0:00:17]} g2 {[%emt 0:00:00]} 62. Kc4 {[%emt 0:00:17]} g1=Q {[%emt 0:00:00]} 63. Kc3 {[%emt 0:00:00]} Qg3+ {[%emt 0:00:30]} 64. Kc4 {[%emt 0:00:10]} Qhh4+ {[%emt 0:00:30]} 65. Kc5 {[%emt 0:00:00]} Qgg5+ {[%emt 0:00:00]} 66. Kc6 {[%emt 0:00:16]} Qhh6+ {[%emt 0:00:00]} 67. Kc7 {[%emt 0:00:08]} Qc5+ {[%emt 0:00:00]} 68. Kb7 {[%emt 0:00:00]} Qhb6+ {[%emt 0:00:00]} 69. Ka8 {[%emt 0:00:21]} Qb8+ {[%emt 0:00:00]} 70. Kxb8 {[%emt 0:00:38]} Qe7 {[%emt 0:00:00]} 71. Kc8 {[%emt 0:00:30]} Ke6 {[%emt 0:00:00]} 72. Kb8 {[%emt 0:00:00]} Kd6 {[%emt 0:00:00]} 73. Ka8 {[%emt 0:00:02]} Kc6 {[%emt 0:00:00]} 74. Kb8 {[%emt 0:00:18]} Qc7+ {[%emt 0:00:00]} 75. Ka8 {[%emt 0:00:19]} Qb7# {[%emt 0:00:00]} 0-1

[Event "FIDE World Cadets U10 2022"]
[Site "Batumi"]
[Date "2022.09.16"]
[Round "1"]
[White "Suarishvili, Nikoloz"]
[Black "Liu, Zachary Hankun"]
[Result "0-1"]
[ECO "B22"]
[WhiteElo "1196"]
[BlackElo "1845"]
[Annotator "NA COMBH"]
[PlyCount "90"]
[EventDate "2022.09.16"]
[EventType "swiss"]
[EventCountry "GEO"]
[SourceTitle "playchess.com"]
[Source "ChessBase"]
[SourceQuality "1"]
[TimeControl "5400+30"]

1. e4 {[%emt 0:01:00]} c5 {[%emt 0:01:00]} 2. c3 {[%emt 0:00:30]} d5 {[%emt 0:00:30]} 3. exd5 {[%emt 0:00:30]} Nf6 {[%emt 0:00:00]} 4. c4 {[%emt 0:00:30]} e6 {[%emt 0:00:00]} 5. dxe6 {[%emt 0:00:30]} Bxe6 {[%emt 0:00:30]} 6. Nf3 {[%emt 0:00:30]} Nc6 {[%emt 0:01:30]} 7. Be2 {[%emt 0:01:30]} Be7 {[%emt 0:00:30]} 8. O-O {[%emt 0:00:30]} O-O {[%emt 0:00:30]} 9. d3 {[%emt 0:01:30]} Qc7 {[%emt 0:01:30]} 10. Be3 {[%emt 0:02:30]} Rad8 {[%emt 0:01:30]} 11. Nc3 {[%emt 0:02:30]} Bxc4 {[%emt 0:02:30]} 12. b3 {[%emt 0:11:30]} Be6 {[%emt 0:01:30]} 13. Rc1 {[%emt 0:05:30]} Qd7 {[%emt 0:03:30]} 14. Qd2 {[%emt 0:04:30]} Nd5 {[%emt 0:05:30]} 15. Nxd5 {[%emt 0:03:30]} Qxd5 {[%emt 0:00:30]} 16. Rfd1 {[%emt 0:01:30]} Nd4 {[%emt 0:01:30]} 17. Nxd4 {[%emt 0:01:30]} cxd4 {[%emt 0:00:30]} 18. Bf4 {[%emt 0:00:30]} Qb5 {[%emt 0:04:30]} 19. Rc7 {[%emt 0:02:30]} Bb4 {[%emt 0:00:30]} 20. Qb2 {[%emt 0:06:30]} Ba5 {[%emt 0:01:30]} 21. Rc2 {[%emt 0:05:30]} Bc3 {[%emt 0:02:30]} 22. Qa3 {[%emt 0:08:30]} Rc8 {[%emt 0:02:30]} 23. Bd2 {[%emt 0:12:30]} Bxd2 {[%emt 0:07:30]} 24. Rdxd2 {[%emt 0:00:30]} a5 {[%emt 0:04:30]} 25. Qd6 {[%emt 0:01:30]} Qd5 {[%emt 0:00:00]} 26. Qb6 {[%emt 0:02:30]} Bf5 {[%emt 0:01:00]} 27. h3 {[%emt 0:04:18]} h6 {[%emt 0:04:30]} 28. Bf3 {[%emt 0:00:39]} Qe5 {[%emt 0:02:30]} 29. Re2 {[%emt 0:05:04]} Qf4 {[%emt 0:00:30]} 30. Be4 {[%emt 0:04:45]} Rcd8 {[%emt 0:13:30]} 31. Qxa5 {[%emt 0:02:15]} Bxe4 {[%emt 0:01:30]} 32. Rxe4 {[%emt 0:00:21]} Qd6 {[%emt 0:01:30]} 33. Qc7 {[%emt 0:00:58]} Qa6 {[%emt 0:00:30]} 34. Qc4 {[%emt 0:01:14]} Qa5 {[%emt 0:03:30]} 35. Qc5 {[%emt 0:01:50]} Qa8 {[%emt 0:00:30]} 36. Rxd4 {[%emt 0:01:25]} Rc8 {[%emt 0:00:30]} 37. Ra4 {[%emt 0:02:43]} Rxc5 {[%emt 0:00:30]} 38. Rxc5 {[%emt 0:00:42]} Qb8 {[%emt 0:02:30]} 39. d4 {[%emt 0:00:19]} Re8 {[%emt 0:00:00]} 40. g3 {[%emt 0:00:51]} b6 {[%emt 0:00:00]} 41. Rb5 {[%emt 0:01:02]} Re1+ {[%emt 0:00:30]} 42. Kh2 {[%emt 0:00:18]} Qe8 {[%emt 0:00:30]} 43. Re5 {[%emt 0:01:47]} Rxe5 {[%emt 0:00:30]} 44. dxe5 {[%emt 0:00:30]} Qxe5 {[%emt 0:00:00]} 45. Rb4 {[%emt 0:00:00]} Qb2 {[%emt 0:00:00]} 0-1

[Event "FIDE World Cadets U10 2022"]
[Site "Batumi"]
[Date "2022.09.16"]
[Round "1"]
[White "Khachapuridze, Demetre"]
[Black "Jalving, August"]
[Result "0-1"]
[ECO "A05"]
[WhiteElo "1172"]
[BlackElo "1778"]
[Annotator "NA COMBH"]
[PlyCount "72"]
[EventDate "2022.09.16"]
[EventType "swiss"]
[EventCountry "GEO"]
[SourceTitle "playchess.com"]
[Source "ChessBase"]
[SourceQuality "1"]
[TimeControl "5400+30"]

1. e4 {[%emt 0:01:00]} c5 {[%emt 0:01:00]} 2. g3 {[%emt 0:00:30]} d6 {[%emt 0:00:30]} 3. Bg2 {[%emt 0:00:30]} Nf6 {[%emt 0:00:30]} 4. d3 {[%emt 0:00:00]} g6 {[%emt 0:00:30]} 5. Nf3 {[%emt 0:00:00]} Bg7 {[%emt 0:01:30]} 6. c3 {[%emt 0:02:30]} O-O {[%emt 0:00:30]} 7. Be3 {[%emt 0:03:30]} Nc6 {[%emt 0:01:30]} 8. Nbd2 {[%emt 0:01:30]} Ng4 {[%emt 0:01:30]} 9. O-O {[%emt 0:08:30]} Nxe3 {[%emt 0:01:30]} 10. fxe3 {[%emt 0:00:30]} e5 {[%emt 0:03:30]} 11. Nb3 {[%emt 0:03:30]} f5 {[%emt 0:05:30]} 12. exf5 {[%emt 0:04:30]} Bxf5 {[%emt 0:02:30]} 13. d4 {[%emt 0:03:30]} c4 {[%emt 0:03:30]} 14. Nc1 {[%emt 0:05:30]} e4 {[%emt 0:10:30]} 15. Nh4 {[%emt 0:11:30]} Qg5 {[%emt 0:01:30]} 16. Nxf5 {[%emt 0:07:30]} Rxf5 {[%emt 0:01:30]} 17. Rf4 {[%emt 0:02:30]} d5 {[%emt 0:10:30]} 18. Ne2 {[%emt 0:03:30]} Raf8 {[%emt 0:04:30]} 19. Bh3 {[%emt 0:02:30]} R5f6 {[%emt 0:00:30]} 20. Qd2 {[%emt 0:06:30]} Ne7 {[%emt 0:18:30]} 21. Rg4 {[%emt 0:05:30]} Qh5 {[%emt 0:06:30]} 22. Nf4 {[%emt 0:02:30]} Rxf4 {[%emt 0:01:30]} 23. gxf4 {[%emt 0:06:59]} Qxh3 {[%emt 0:00:00]} 24. Qe2 {[%emt 0:00:49]} Nf5 {[%emt 0:01:00]} 25. Re1 {[%emt 0:01:29]} Nh4 {[%emt 0:00:30]} 26. Kh1 {[%emt 0:02:57]} Nf3 {[%emt 0:00:30]} 27. Rg3 {[%emt 0:00:11]} Qh4 {[%emt 0:00:30]} 28. Rf1 {[%emt 0:01:08]} Rf5 {[%emt 0:01:30]} 29. Rf2 {[%emt 0:03:35]} Rh5 {[%emt 0:00:30]} 30. Rgg2 {[%emt 0:02:30]} b5 {[%emt 0:04:52]} 31. b3 {[%emt 0:02:13]} Qe7 {[%emt 0:01:49]} 32. bxc4 {[%emt 0:00:58]} bxc4 {[%emt 0:00:56]} 33. Qb2 {[%emt 0:00:03]} Rf5 {[%emt 0:01:44]} 34. Qb8+ {[%emt 0:00:27]} Rf8 {[%emt 0:00:50]} 35. Qb5 {[%emt 0:00:10]} Qd6 {[%emt 0:00:00]} 36. Qb7 {[%emt 0:00:36]} Rb8 {[%emt 0:00:02]} 0-1